[Event "Titled Tuesday Blitz May 23 Late 2023"]
[White "Winkels, Marcel"]
[Black "Kohler, Aran"]
[WhiteFideId "1003887"]
[BlackFideId "1002856"]
[WhiteElo "1900"]
[BlackElo "2367"]
[Result "0-1"]
[Round "03"]
[TimeControl "180+2"]
[Date "2023.05.23"]
[WhiteClock "0:00:00"]
[BlackClock "0:00:39"]

1. d4 {[%clk 0:03:00]}  Nf6 {[%clk 0:02:58]} 2. Nc3 {[%clk 0:03:01]}  d5 {[%clk 0:02:57]} 3. Bf4 {[%clk 0:03:01]}  a6 {[%clk 0:02:56]} 4. e3 {[%clk 0:03:01]}  Bf5 {[%clk 0:02:55]} 5. Nf3 {[%clk 0:03:01]}  e6 {[%clk 0:02:55]} 6. Ne5 {[%clk 0:03:00]}  c5 {[%clk 0:02:55]} 7. g4 {[%clk 0:03:00]}  Bg6 {[%clk 0:02:48]} 8. h4 {[%clk 0:02:58]}  cxd4 {[%clk 0:02:38]} 9. exd4 {[%clk 0:02:54]}  Bb4 {[%clk 0:02:29]} 10. h5 {[%clk 0:02:51]}  Ne4 {[%clk 0:02:23]} 11. hxg6 {[%clk 0:02:43]}  fxg6 {[%clk 0:02:21]} 12. Bd2 {[%clk 0:02:39]}  Bxc3 {[%clk 0:02:03]} 13. bxc3 {[%clk 0:02:24]}  O-O {[%clk 0:02:03]} 14. f3 {[%clk 0:02:13]}  Ng3 {[%clk 0:01:53]} 15. Rh3 {[%clk 0:02:07]}  Nxf1 {[%clk 0:01:53]} 16. Kxf1 {[%clk 0:02:05]}  Nc6 {[%clk 0:01:52]} 17. Kg2 {[%clk 0:02:02]}  Nxe5 {[%clk 0:01:51]} 18. dxe5 {[%clk 0:02:00]}  d4 {[%clk 0:01:49]} 19. c4 {[%clk 0:01:58]}  Rc8 {[%clk 0:01:47]} 20. Qe2 {[%clk 0:01:57]}  b5 {[%clk 0:01:45]} 21. Rah1 {[%clk 0:01:52]}  Rxc4 {[%clk 0:01:29]} 22. Qe4 {[%clk 0:01:43]}  Qc7 {[%clk 0:01:08]} 23. Rxh7 {[%clk 0:01:13]}  d3 {[%clk 0:00:45]} 24. Rh8+ {[%clk 0:01:06]}  Kf7 {[%clk 0:00:45]} 25. Rxf8+ {[%clk 0:01:05]}  Kxf8 {[%clk 0:00:45]} 26. Qf4+ {[%clk 0:00:58]}  Rxf4 {[%clk 0:00:44]} 27. Bxf4 {[%clk 0:00:38]}  Qxc2+ {[%clk 0:00:44]} 28. Kg3 {[%clk 0:00:00]}  d2 {[%clk 0:00:39]} 0-1


[Site "https://www.chess.com"]

[Event "Titled Tuesday Blitz May 23 Late 2023"]
[White "Kaganskiy, Gleb"]
[Black "Osiecki, Stanislaw"]
[WhiteFideId "4132025"]
[BlackFideId "1102990"]
[WhiteElo "2165"]
[BlackElo "2088"]
[Result "1/2-1/2"]
[Round "03"]
[TimeControl "180+2"]
[Date "2023.05.23"]
[WhiteClock "0:00:12"]
[BlackClock "0:00:05"]

1. Nf3 {[%clk 0:03:00]}  Nf6 {[%clk 0:02:59]} 2. b3 {[%clk 0:03:00]}  g6 {[%clk 0:02:53]} 3. Bb2 {[%clk 0:03:01]}  Bg7 {[%clk 0:02:53]} 4. e3 {[%clk 0:03:00]}  d6 {[%clk 0:02:54]} 5. Be2 {[%clk 0:03:00]}  e5 {[%clk 0:02:54]} 6. d4 {[%clk 0:02:59]}  e4 {[%clk 0:02:53]} 7. Nfd2 {[%clk 0:02:57]}  O-O {[%clk 0:02:52]} 8. c4 {[%clk 0:02:57]}  h5 {[%clk 0:02:49]} 9. Nc3 {[%clk 0:02:57]}  Bf5 {[%clk 0:02:49]} 10. h3 {[%clk 0:02:56]}  c6 {[%clk 0:02:48]} 11. g4 {[%clk 0:02:56]}  hxg4 {[%clk 0:02:47]} 12. hxg4 {[%clk 0:02:56]}  Bd7 {[%clk 0:02:47]} 13. Ndxe4 {[%clk 0:02:56]}  Nxe4 {[%clk 0:02:47]} 14. Nxe4 {[%clk 0:02:56]}  Qe7 {[%clk 0:02:47]} 15. Qc2 {[%clk 0:02:49]}  d5 {[%clk 0:02:41]} 16. Nc5 {[%clk 0:02:43]}  b6 {[%clk 0:02:29]} 17. Nxd7 {[%clk 0:02:43]}  Nxd7 {[%clk 0:02:29]} 18. O-O-O {[%clk 0:02:21]}  Nf6 {[%clk 0:02:29]} 19. Bf3 {[%clk 0:02:09]}  Ne4 {[%clk 0:02:26]} 20. Bxe4 {[%clk 0:02:08]}  dxe4 {[%clk 0:02:26]} 21. d5 {[%clk 0:02:03]}  cxd5 {[%clk 0:02:22]} 22. Rxd5 {[%clk 0:01:59]}  Rad8 {[%clk 0:02:17]} 23. Rhd1 {[%clk 0:01:50]}  Rxd5 {[%clk 0:02:16]} 24. Rxd5 {[%clk 0:01:49]}  Bxb2+ {[%clk 0:02:12]} 25. Qxb2 {[%clk 0:01:47]}  Qh4 {[%clk 0:02:09]} 26. g5 {[%clk 0:01:40]}  Qh1+ {[%clk 0:01:58]} 27. Rd1 {[%clk 0:01:39]}  Qg2 {[%clk 0:01:56]} 28. Qf6 {[%clk 0:01:37]}  Re8 {[%clk 0:01:48]} 29. Rd7 {[%clk 0:01:24]}  Qf1+ {[%clk 0:01:45]} 30. Kd2 {[%clk 0:01:22]}  Rf8 {[%clk 0:01:41]} 31. Rd8 {[%clk 0:01:09]}  Qb1 {[%clk 0:01:17]} 32. Rxf8+ {[%clk 0:01:06]}  Kxf8 {[%clk 0:01:17]} 33. Qd8+ {[%clk 0:00:52]}  Kg7 {[%clk 0:01:15]} 34. Qd4+ {[%clk 0:00:52]}  Kg8 {[%clk 0:01:09]} 35. Kc3 {[%clk 0:00:43]}  Qa1+ {[%clk 0:01:05]} 36. Kb4 {[%clk 0:00:41]}  Qxa2 {[%clk 0:00:54]} 37. Kb5 {[%clk 0:00:36]}  Qa5+ {[%clk 0:00:49]} 38. Kc6 {[%clk 0:00:35]}  Qxg5 {[%clk 0:00:48]} 39. Qxe4 {[%clk 0:00:32]}  Qf6+ {[%clk 0:00:47]} 40. Kb7 {[%clk 0:00:31]}  Qxf2 {[%clk 0:00:45]} 41. Kxa7 {[%clk 0:00:30]}  Qa2+ {[%clk 0:00:44]} 42. Kxb6 {[%clk 0:00:30]}  Qxb3+ {[%clk 0:00:44]} 43. Kc5 {[%clk 0:00:31]}  Qa3+ {[%clk 0:00:44]} 44. Kd4 {[%clk 0:00:29]}  Qb2+ {[%clk 0:00:44]} 45. Kd5 {[%clk 0:00:29]}  Qb7+ {[%clk 0:00:43]} 46. Ke5 {[%clk 0:00:25]}  Qc7+ {[%clk 0:00:41]} 47. Kd4 {[%clk 0:00:24]}  Qa7+ {[%clk 0:00:34]} 48. c5 {[%clk 0:00:22]}  Qa4+ {[%clk 0:00:31]} 49. Ke5 {[%clk 0:00:22]}  Qe8+ {[%clk 0:00:28]} 50. Kf4 {[%clk 0:00:21]}  Qb8+ {[%clk 0:00:22]} 51. Qe5 {[%clk 0:00:20]}  Qb4+ {[%clk 0:00:20]} 52. e4 {[%clk 0:00:19]}  Qd2+ {[%clk 0:00:18]} 53. Kf3 {[%clk 0:00:19]}  Qd3+ {[%clk 0:00:18]} 54. Kf2 {[%clk 0:00:20]}  Qd2+ {[%clk 0:00:18]} 55. Kf3 {[%clk 0:00:20]}  Qd3+ {[%clk 0:00:19]} 56. Kg4 {[%clk 0:00:20]}  Qe2+ {[%clk 0:00:16]} 57. Kg5 {[%clk 0:00:19]}  Qh5+ {[%clk 0:00:14]} 58. Kf6 {[%clk 0:00:19]}  Qh4+ {[%clk 0:00:13]} 59. Qg5 {[%clk 0:00:17]}  Qxe4 {[%clk 0:00:11]} 60. Qe5 {[%clk 0:00:13]}  Qh4+ {[%clk 0:00:09]} 61. Qg5 {[%clk 0:00:12]}  Qd4+ {[%clk 0:00:08]} 62. Qe5 {[%clk 0:00:12]}  Qd8+ {[%clk 0:00:05]} 63. Qe7 {[%clk 0:00:12]}  Qd4+ {[%clk 0:00:05]} 64. Qe5 {[%clk 0:00:12]}  Qd8+ {[%clk 0:00:05]} 65. Qe7 {[%clk 0:00:12]}  Qd4+ {[%clk 0:00:05]} 66. Qe5 {[%clk 0:00:12]} 1/2-1/2


[Site "https://www.chess.com"]

[Event "Titled Tuesday Blitz May 23 Late 2023"]
[White "Essa, Naseem Ahmed"]
[Black "Mickiewicz, Piotr"]
[WhiteFideId "14316560"]
[BlackFideId "1114891"]
[WhiteElo "1883"]
[BlackElo "2246"]
[Result "0-1"]
[Round "03"]
[TimeControl "180+2"]
[Date "2023.05.23"]
[WhiteClock "0:00:06"]
[BlackClock "0:00:11"]

1. d4 {[%clk 0:02:59]}  e6 {[%clk 0:02:57]} 2. Nf3 {[%clk 0:03:00]}  Nf6 {[%clk 0:02:56]} 3. g3 {[%clk 0:03:00]}  b6 {[%clk 0:02:54]} 4. Bg2 {[%clk 0:03:00]}  Bb7 {[%clk 0:02:55]} 5. c4 {[%clk 0:03:00]}  Bb4+ {[%clk 0:02:50]} 6. Bd2 {[%clk 0:03:00]}  Bxd2+ {[%clk 0:02:45]} 7. Nbxd2 {[%clk 0:02:58]}  O-O {[%clk 0:02:39]} 8. O-O {[%clk 0:02:58]}  d6 {[%clk 0:02:38]} 9. b4 {[%clk 0:02:52]}  a5 {[%clk 0:02:30]} 10. a3 {[%clk 0:02:46]}  Nbd7 {[%clk 0:02:29]} 11. Qb3 {[%clk 0:02:26]}  Ra7 {[%clk 0:02:22]} 12. Rfe1 {[%clk 0:02:18]}  Qa8 {[%clk 0:02:22]} 13. b5 {[%clk 0:02:05]}  a4 {[%clk 0:02:20]} 14. Qb4 {[%clk 0:01:55]}  Re8 {[%clk 0:02:10]} 15. Nh4 {[%clk 0:01:53]}  Bxg2 {[%clk 0:02:08]} 16. Nxg2 {[%clk 0:01:53]}  Ne4 {[%clk 0:02:02]} 17. f3 {[%clk 0:01:11]}  Nxd2 {[%clk 0:01:59]} 18. Qxd2 {[%clk 0:01:12]}  e5 {[%clk 0:01:59]} 19. d5 {[%clk 0:01:08]}  e4 {[%clk 0:01:57]} 20. Ne3 {[%clk 0:00:16]}  Nc5 {[%clk 0:01:53]} 21. Rad1 {[%clk 0:00:16]}  Qd8 {[%clk 0:01:49]} 22. Qd4 {[%clk 0:00:15]}  Qg5 {[%clk 0:01:30]} 23. f4 {[%clk 0:00:15]}  Qh5 {[%clk 0:01:28]} 24. Kg2 {[%clk 0:00:13]}  f5 {[%clk 0:01:10]} 25. h3 {[%clk 0:00:13]}  Rf8 {[%clk 0:01:06]} 26. g4 {[%clk 0:00:11]}  fxg4 {[%clk 0:01:05]} 27. hxg4 {[%clk 0:00:12]}  Qg6 {[%clk 0:01:02]} 28. Kg3 {[%clk 0:00:09]}  Rf7 {[%clk 0:00:44]} 29. Rh1 {[%clk 0:00:09]}  Ra8 {[%clk 0:00:43]} 30. Rh5 {[%clk 0:00:07]}  Raf8 {[%clk 0:00:42]} 31. Rg5 {[%clk 0:00:06]}  Qf6 {[%clk 0:00:38]} 32. Qxf6 {[%clk 0:00:05]}  Rxf6 {[%clk 0:00:39]} 33. Nf5 {[%clk 0:00:06]}  R8f7 {[%clk 0:00:36]} 34. Rf1 {[%clk 0:00:05]}  Kf8 {[%clk 0:00:20]} 35. Nd4 {[%clk 0:00:03]}  g6 {[%clk 0:00:17]} 36. Rh1 {[%clk 0:00:02]}  Rxf4 {[%clk 0:00:14]} 37. Rxh7 {[%clk 0:00:02]}  Rxg4+ {[%clk 0:00:11]} 38. Kxg4 {[%clk 0:00:03]}  Rxh7 {[%clk 0:00:11]} 39. Rxg6 {[%clk 0:00:03]}  Rf7 {[%clk 0:00:11]} 40. Ne6+ {[%clk 0:00:03]}  Ke7 {[%clk 0:00:12]} 41. Nxc5 {[%clk 0:00:03]}  bxc5 {[%clk 0:00:12]} 42. Re6+ {[%clk 0:00:04]}  Kd7 {[%clk 0:00:13]} 43. Rxe4 {[%clk 0:00:04]}  Rf1 {[%clk 0:00:12]} 44. e3 {[%clk 0:00:02]}  Rc1 {[%clk 0:00:12]} 45. Kf5 {[%clk 0:00:02]}  Rc3 {[%clk 0:00:13]} 46. Kf6 {[%clk 0:00:02]}  Rxa3 {[%clk 0:00:13]} 47. Re7+ {[%clk 0:00:02]}  Kd8 {[%clk 0:00:12]} 48. e4 {[%clk 0:00:03]}  Rf3+ {[%clk 0:00:12]} 49. Ke6 {[%clk 0:00:03]}  Re3 {[%clk 0:00:12]} 50. Kf6 {[%clk 0:00:04]}  a3 {[%clk 0:00:10]} 51. Rh7 {[%clk 0:00:04]}  a2 {[%clk 0:00:10]} 52. Rh1 {[%clk 0:00:04]}  Rxe4 {[%clk 0:00:10]} 53. Rh8+ {[%clk 0:00:02]}  Kd7 {[%clk 0:00:10]} 54. Rh7+ {[%clk 0:00:02]}  Kc8 {[%clk 0:00:10]} 55. Rh1 {[%clk 0:00:03]}  Kb7 {[%clk 0:00:10]} 56. Ra1 {[%clk 0:00:04]}  Re2 {[%clk 0:00:10]} 57. Kf7 {[%clk 0:00:04]}  Kb6 {[%clk 0:00:10]} 58. Kf6 {[%clk 0:00:04]}  Ka5 {[%clk 0:00:11]} 59. Kf5 {[%clk 0:00:05]}  Kb4 {[%clk 0:00:12]} 60. Kf4 {[%clk 0:00:05]}  Kxc4 {[%clk 0:00:12]} 61. Kf3 {[%clk 0:00:06]}  Rb2 {[%clk 0:00:11]} 62. Rc1+ {[%clk 0:00:06]}  Kxb5 {[%clk 0:00:11]} 63. Ra1 {[%clk 0:00:06]}  c4 {[%clk 0:00:11]} 0-1


[Site "https://www.chess.com"]

[Event "Titled Tuesday Blitz May 23 Late 2023"]
[White "Gerbelli Neto, Eduardo"]
[Black "Blackwhite017"]
[WhiteFideId "2103281"]
[WhiteElo "2178"]
[BlackElo "2095"]
[Result "1-0"]
[Round "03"]
[TimeControl "180+2"]
[Date "2023.05.23"]
[WhiteClock "0:01:27"]
[BlackClock "0:00:04"]

1. e4 {[%clk 0:03:00]}  c5 {[%clk 0:02:59]} 2. Nc3 {[%clk 0:03:00]}  Nc6 {[%clk 0:02:58]} 3. f4 {[%clk 0:03:00]}  g6 {[%clk 0:02:58]} 4. Nf3 {[%clk 0:03:01]}  Bg7 {[%clk 0:02:59]} 5. Bc4 {[%clk 0:03:01]}  e6 {[%clk 0:02:58]} 6. f5 {[%clk 0:03:01]}  Nge7 {[%clk 0:02:51]} 7. fxe6 {[%clk 0:03:00]}  fxe6 {[%clk 0:02:52]} 8. d3 {[%clk 0:03:01]}  d5 {[%clk 0:02:49]} 9. Bb3 {[%clk 0:03:00]}  O-O {[%clk 0:02:49]} 10. O-O {[%clk 0:02:59]}  Nd4 {[%clk 0:02:47]} 11. Bg5 {[%clk 0:02:59]}  Nxb3 {[%clk 0:02:33]} 12. axb3 {[%clk 0:02:59]}  d4 {[%clk 0:02:25]} 13. Na4 {[%clk 0:02:58]}  Qc7 {[%clk 0:02:15]} 14. Bxe7 {[%clk 0:02:56]}  Qxe7 {[%clk 0:02:16]} 15. Nb6 {[%clk 0:02:56]}  Rb8 {[%clk 0:01:56]} 16. Rxa7 {[%clk 0:02:56]}  Bd7 {[%clk 0:01:33]} 17. Qd2 {[%clk 0:02:33]}  Bc6 {[%clk 0:01:29]} 18. Qg5 {[%clk 0:02:24]}  Bf6 {[%clk 0:01:19]} 19. Qh6 {[%clk 0:02:09]}  Rf7 {[%clk 0:01:17]} 20. Nc4 {[%clk 0:01:56]}  e5 {[%clk 0:00:57]} 21. Rfa1 {[%clk 0:01:52]}  Rbf8 {[%clk 0:00:51]} 22. Ra8 {[%clk 0:01:46]}  Bg7 {[%clk 0:00:51]} 23. Rxf8+ {[%clk 0:01:45]}  Rxf8 {[%clk 0:00:49]} 24. Qh4 {[%clk 0:01:39]}  Qe6 {[%clk 0:00:17]} 25. Qxh7+ {[%clk 0:01:30]}  Kxh7 {[%clk 0:00:17]} 26. Ng5+ {[%clk 0:01:30]}  Kh6 {[%clk 0:00:17]} 27. Nxe6 {[%clk 0:01:31]}  Rf6 {[%clk 0:00:13]} 28. Nxg7 {[%clk 0:01:27]}  Kxg7 {[%clk 0:00:04]} 29. Nxe5 {[%clk 0:01:27]} 1-0


[Site "https://www.chess.com"]

[Event "Titled Tuesday Blitz May 23 Late 2023"]
[White "Sailer, Mike"]
[Black "Sarkar, Justin"]
[WhiteFideId "2012901"]
[BlackFideId "2010011"]
[WhiteElo "2109"]
[BlackElo "2168"]
[Result "1-0"]
[Round "03"]
[TimeControl "180+2"]
[Date "2023.05.23"]
[WhiteClock "0:00:08"]
[BlackClock "0:00:00"]

1. d4 {[%clk 0:03:00]}  f5 {[%clk 0:02:58]} 2. Bg5 {[%clk 0:02:58]}  c5 {[%clk 0:02:46]} 3. d5 {[%clk 0:02:50]}  h6 {[%clk 0:02:39]} 4. Bh4 {[%clk 0:02:46]}  g5 {[%clk 0:02:20]} 5. Bg3 {[%clk 0:02:23]}  Bg7 {[%clk 0:02:16]} 6. e3 {[%clk 0:02:07]}  Bxb2 {[%clk 0:02:01]} 7. Nd2 {[%clk 0:02:08]}  Bxa1 {[%clk 0:01:56]} 8. Qxa1 {[%clk 0:02:07]}  Nf6 {[%clk 0:01:56]} 9. Be5 {[%clk 0:01:36]}  d6 {[%clk 0:01:50]} 10. Bb2 {[%clk 0:01:36]}  O-O {[%clk 0:01:40]} 11. h4 {[%clk 0:01:25]}  g4 {[%clk 0:01:37]} 12. Bd3 {[%clk 0:01:16]}  Nxd5 {[%clk 0:01:27]} 13. Ne2 {[%clk 0:00:53]}  Nb4 {[%clk 0:01:19]} 14. Nf4 {[%clk 0:00:34]}  Nxd3+ {[%clk 0:00:58]} 15. cxd3 {[%clk 0:00:32]}  e5 {[%clk 0:00:57]} 16. Ng6 {[%clk 0:00:22]}  Re8 {[%clk 0:00:52]} 17. Nc4 {[%clk 0:00:10]}  h5 {[%clk 0:00:44]} 18. Ncxe5 {[%clk 0:00:04]}  dxe5 {[%clk 0:00:43]} 19. Nxe5 {[%clk 0:00:03]}  f4 {[%clk 0:00:34]} 20. O-O {[%clk 0:00:02]}  f3 {[%clk 0:00:28]} 21. g3 {[%clk 0:00:02]}  Be6 {[%clk 0:00:21]} 22. Rd1 {[%clk 0:00:03]}  Nc6 {[%clk 0:00:18]} 23. d4 {[%clk 0:00:04]}  Nxe5 {[%clk 0:00:14]} 24. dxe5 {[%clk 0:00:04]}  Qe7 {[%clk 0:00:11]} 25. Rd6 {[%clk 0:00:05]}  Rad8 {[%clk 0:00:09]} 26. Qc1 {[%clk 0:00:05]}  Rxd6 {[%clk 0:00:08]} 27. exd6 {[%clk 0:00:06]}  Qh7 {[%clk 0:00:02]} 28. Qc3 {[%clk 0:00:06]}  Kf8 {[%clk 0:00:01]} 29. Qf6+ {[%clk 0:00:06]}  Qf7 {[%clk 0:00:01]} 30. Qh8+ {[%clk 0:00:06]}  Qg8 {[%clk 0:00:01]} 31. Qf6+ {[%clk 0:00:07]}  Bf7 {[%clk 0:00:00]} 32. d7 {[%clk 0:00:08]} 1-0


[Site "https://www.chess.com"]

[Event "Titled Tuesday Blitz May 23 Late 2023"]
[White "Levitan, Ronit"]
[Black "Rodriguez Santiago, Jaime"]
[WhiteFideId "2815109"]
[BlackFideId "3100898"]
[WhiteElo "1930"]
[BlackElo "2025"]
[Result "1-0"]
[Round "03"]
[TimeControl "180+2"]
[Date "2023.05.23"]
[WhiteClock "0:00:23"]
[BlackClock "0:00:19"]

1. d4 {[%clk 0:03:00]}  Nf6 {[%clk 0:02:59]} 2. Nf3 {[%clk 0:02:57]}  e6 {[%clk 0:02:57]} 3. Bf4 {[%clk 0:02:53]}  d5 {[%clk 0:02:55]} 4. e3 {[%clk 0:02:48]}  c5 {[%clk 0:02:54]} 5. c3 {[%clk 0:02:46]}  Nc6 {[%clk 0:02:53]} 6. Nbd2 {[%clk 0:02:31]}  cxd4 {[%clk 0:02:53]} 7. exd4 {[%clk 0:02:28]}  Nh5 {[%clk 0:02:52]} 8. Bg3 {[%clk 0:02:22]}  f6 {[%clk 0:02:35]} 9. Bd3 {[%clk 0:01:49]}  g6 {[%clk 0:02:30]} 10. Nh4 {[%clk 0:01:39]}  Nxg3 {[%clk 0:02:17]} 11. hxg3 {[%clk 0:01:40]}  Bg7 {[%clk 0:02:12]} 12. Qc2 {[%clk 0:01:32]}  f5 {[%clk 0:02:00]} 13. Bb5 {[%clk 0:01:25]}  Bd7 {[%clk 0:01:59]} 14. Bxc6 {[%clk 0:01:24]}  Bxc6 {[%clk 0:01:57]} 15. Nb3 {[%clk 0:01:15]}  Qe7 {[%clk 0:01:47]} 16. Qe2 {[%clk 0:01:14]}  e5 {[%clk 0:01:39]} 17. dxe5 {[%clk 0:01:10]}  Qxe5 {[%clk 0:01:39]} 18. Qxe5+ {[%clk 0:01:10]}  Bxe5 {[%clk 0:01:39]} 19. Nf3 {[%clk 0:01:11]}  Bf6 {[%clk 0:01:34]} 20. Nbd4 {[%clk 0:01:06]}  Bd7 {[%clk 0:01:29]} 21. O-O-O {[%clk 0:01:05]}  O-O-O {[%clk 0:01:29]} 22. Rde1 {[%clk 0:01:03]}  h6 {[%clk 0:01:08]} 23. Ne5 {[%clk 0:00:51]}  Be8 {[%clk 0:00:57]} 24. f4 {[%clk 0:00:20]}  g5 {[%clk 0:00:49]} 25. Kd2 {[%clk 0:00:20]}  gxf4 {[%clk 0:00:48]} 26. gxf4 {[%clk 0:00:21]}  h5 {[%clk 0:00:46]} 27. Nxf5 {[%clk 0:00:21]}  Rg8 {[%clk 0:00:38]} 28. g3 {[%clk 0:00:21]}  Kb8 {[%clk 0:00:34]} 29. Re2 {[%clk 0:00:19]}  a6 {[%clk 0:00:21]} 30. Reh2 {[%clk 0:00:19]}  Bb5 {[%clk 0:00:19]} 31. Rxh5 {[%clk 0:00:19]}  Bxe5 {[%clk 0:00:15]} 32. fxe5 {[%clk 0:00:19]}  Bd7 {[%clk 0:00:16]} 33. Re1 {[%clk 0:00:17]}  Bxf5 {[%clk 0:00:15]} 34. Rxf5 {[%clk 0:00:17]}  Rxg3 {[%clk 0:00:16]} 35. e6 {[%clk 0:00:17]}  Re8 {[%clk 0:00:16]} 36. e7 {[%clk 0:00:17]}  Rgg8 {[%clk 0:00:17]} 37. Rxd5 {[%clk 0:00:17]}  Rg7 {[%clk 0:00:16]} 38. Rde5 {[%clk 0:00:18]}  Kc7 {[%clk 0:00:16]} 39. Kc2 {[%clk 0:00:18]}  Kd7 {[%clk 0:00:17]} 40. Kb3 {[%clk 0:00:19]}  Rgxe7 {[%clk 0:00:17]} 41. Rxe7+ {[%clk 0:00:20]}  Rxe7 {[%clk 0:00:18]} 42. Rxe7+ {[%clk 0:00:20]}  Kxe7 {[%clk 0:00:18]} 43. Kc4 {[%clk 0:00:21]}  Kd6 {[%clk 0:00:19]} 44. b4 {[%clk 0:00:20]}  b5+ {[%clk 0:00:19]} 45. Kd4 {[%clk 0:00:21]}  Ke6 {[%clk 0:00:20]} 46. c4 {[%clk 0:00:21]}  Kd6 {[%clk 0:00:19]} 47. c5+ {[%clk 0:00:21]}  Kc6 {[%clk 0:00:19]} 48. a3 {[%clk 0:00:22]}  a5 {[%clk 0:00:20]} 49. Ke5 {[%clk 0:00:20]}  a4 {[%clk 0:00:20]} 50. Kd4 {[%clk 0:00:20]}  Kc7 {[%clk 0:00:20]} 51. Kd5 {[%clk 0:00:21]}  Kc8 {[%clk 0:00:20]} 52. Kc6 {[%clk 0:00:21]}  Kb8 {[%clk 0:00:20]} 53. Kxb5 {[%clk 0:00:22]}  Ka8 {[%clk 0:00:19]} 54. Kxa4 {[%clk 0:00:23]} 1-0


[Site "https://www.chess.com"]

[Event "Titled Tuesday Blitz May 23 Late 2023"]
[White "Castillo Pena, Patricia Evarista"]
[Black "Shapiro, Daniel"]
[WhiteFideId "6412106"]
[BlackFideId "2001780"]
[WhiteElo "1919"]
[BlackElo "2342"]
[Result "0-1"]
[Round "03"]
[TimeControl "180+2"]
[Date "2023.05.23"]
[WhiteClock "0:00:14"]
[BlackClock "0:00:56"]

1. d4 {[%clk 0:03:00]}  Nf6 {[%clk 0:02:59]} 2. Nf3 {[%clk 0:02:59]}  b6 {[%clk 0:02:58]} 3. e3 {[%clk 0:02:55]}  Bb7 {[%clk 0:02:55]} 4. Bd3 {[%clk 0:02:54]}  e6 {[%clk 0:02:56]} 5. b3 {[%clk 0:02:54]}  g6 {[%clk 0:02:52]} 6. Bb2 {[%clk 0:02:53]}  Bg7 {[%clk 0:02:53]} 7. O-O {[%clk 0:02:53]}  O-O {[%clk 0:02:53]} 8. Nbd2 {[%clk 0:02:53]}  d6 {[%clk 0:02:53]} 9. c4 {[%clk 0:02:53]}  Nbd7 {[%clk 0:02:54]} 10. Qe2 {[%clk 0:02:52]}  Qe7 {[%clk 0:02:54]} 11. Rfe1 {[%clk 0:02:51]}  e5 {[%clk 0:02:54]} 12. dxe5 {[%clk 0:02:47]}  dxe5 {[%clk 0:02:54]} 13. e4 {[%clk 0:02:40]}  Nh5 {[%clk 0:02:53]} 14. g3 {[%clk 0:02:39]}  Nc5 {[%clk 0:02:52]} 15. Bc2 {[%clk 0:02:26]}  Ne6 {[%clk 0:02:15]} 16. Rad1 {[%clk 0:02:07]}  Rae8 {[%clk 0:01:58]} 17. Nf1 {[%clk 0:01:59]}  c5 {[%clk 0:01:39]} 18. Ne3 {[%clk 0:01:57]}  Nd4 {[%clk 0:01:36]} 19. Nxd4 {[%clk 0:01:50]}  exd4 {[%clk 0:01:34]} 20. Nd5 {[%clk 0:01:51]}  Bxd5 {[%clk 0:01:29]} 21. cxd5 {[%clk 0:01:50]}  f5 {[%clk 0:01:23]} 22. Qc4 {[%clk 0:01:32]}  Qf7 {[%clk 0:01:17]} 23. exf5 {[%clk 0:01:27]}  d3 {[%clk 0:01:08]} 24. Rxe8 {[%clk 0:01:10]}  Rxe8 {[%clk 0:01:02]} 25. Bxg7 {[%clk 0:00:54]}  dxc2 {[%clk 0:01:00]} 26. Qxc2 {[%clk 0:00:48]}  Nxg7 {[%clk 0:00:59]} 27. d6 {[%clk 0:00:47]}  Nxf5 {[%clk 0:00:56]} 28. d7 {[%clk 0:00:46]}  Rd8 {[%clk 0:00:56]} 29. Qd3 {[%clk 0:00:14]}  Nd4 {[%clk 0:00:56]} 0-1


[Site "https://www.chess.com"]

[Event "Titled Tuesday Blitz May 23 Late 2023"]
[White "Nakamura, Hikaru"]
[Black "Talibov, Shiroghlan"]
[WhiteFideId "2016192"]
[BlackFideId "13429078"]
[WhiteElo "2885"]
[BlackElo "2188"]
[Result "1/2-1/2"]
[Round "04"]
[TimeControl "180+2"]
[Date "2023.05.23"]
[WhiteClock "0:00:09"]
[BlackClock "0:00:08"]

1. e4 {[%clk 0:03:00]}  c5 {[%clk 0:02:59]} 2. c3 {[%clk 0:03:00]}  Nf6 {[%clk 0:02:51]} 3. e5 {[%clk 0:03:00]}  Nd5 {[%clk 0:02:52]} 4. d4 {[%clk 0:03:01]}  Nc6 {[%clk 0:02:46]} 5. dxc5 {[%clk 0:02:46]}  e6 {[%clk 0:02:42]} 6. c4 {[%clk 0:02:43]}  Nc7 {[%clk 0:02:39]} 7. Be3 {[%clk 0:02:36]}  Nxe5 {[%clk 0:02:35]} 8. a3 {[%clk 0:02:36]}  Be7 {[%clk 0:02:30]} 9. Bd4 {[%clk 0:02:29]}  Bf6 {[%clk 0:02:27]} 10. Nc3 {[%clk 0:02:29]}  Nc6 {[%clk 0:02:18]} 11. Bxf6 {[%clk 0:02:29]}  Qxf6 {[%clk 0:02:15]} 12. Nf3 {[%clk 0:02:27]}  O-O {[%clk 0:02:14]} 13. Qd2 {[%clk 0:02:08]}  b6 {[%clk 0:01:57]} 14. cxb6 {[%clk 0:02:01]}  axb6 {[%clk 0:01:57]} 15. Bd3 {[%clk 0:02:02]}  Bb7 {[%clk 0:01:54]} 16. Ne4 {[%clk 0:01:58]}  Qe7 {[%clk 0:01:52]} 17. Nd6 {[%clk 0:01:58]}  Rab8 {[%clk 0:01:44]} 18. O-O {[%clk 0:01:55]}  g6 {[%clk 0:01:37]} 19. Nxb7 {[%clk 0:01:51]}  Rxb7 {[%clk 0:01:37]} 20. Be4 {[%clk 0:01:51]}  Ne8 {[%clk 0:01:34]} 21. Nd4 {[%clk 0:01:32]}  Rc7 {[%clk 0:01:21]} 22. Nb5 {[%clk 0:01:31]}  Rc8 {[%clk 0:01:21]} 23. b3 {[%clk 0:01:22]}  f5 {[%clk 0:01:19]} 24. Bf3 {[%clk 0:01:20]}  Ne5 {[%clk 0:01:17]} 25. Qe2 {[%clk 0:01:15]}  Nxf3+ {[%clk 0:00:56]} 26. Qxf3 {[%clk 0:01:15]}  Nd6 {[%clk 0:00:56]} 27. Nc3 {[%clk 0:01:10]}  Rfd8 {[%clk 0:00:50]} 28. Rfe1 {[%clk 0:01:04]}  Qf6 {[%clk 0:00:49]} 29. Rad1 {[%clk 0:01:04]}  Nf7 {[%clk 0:00:49]} 30. Na4 {[%clk 0:00:54]}  Rc6 {[%clk 0:00:45]} 31. Qe3 {[%clk 0:00:54]}  f4 {[%clk 0:00:34]} 32. Qd4 {[%clk 0:00:53]}  Qg5 {[%clk 0:00:32]} 33. Nc3 {[%clk 0:00:39]}  f3 {[%clk 0:00:32]} 34. g3 {[%clk 0:00:39]}  Qf5 {[%clk 0:00:29]} 35. Qe4 {[%clk 0:00:39]}  Qf6 {[%clk 0:00:24]} 36. Rd3 {[%clk 0:00:36]}  d5 {[%clk 0:00:24]} 37. Qxf3 {[%clk 0:00:19]}  Qxf3 {[%clk 0:00:23]} 38. Rxf3 {[%clk 0:00:20]}  dxc4 {[%clk 0:00:24]} 39. bxc4 {[%clk 0:00:20]}  Rxc4 {[%clk 0:00:25]} 40. Ne4 {[%clk 0:00:21]}  Kg7 {[%clk 0:00:24]} 41. Rb3 {[%clk 0:00:18]}  Rdd4 {[%clk 0:00:18]} 42. f3 {[%clk 0:00:18]}  Ne5 {[%clk 0:00:16]} 43. Ng5 {[%clk 0:00:19]}  Rd2 {[%clk 0:00:14]} 44. Nxe6+ {[%clk 0:00:14]}  Kf6 {[%clk 0:00:14]} 45. Nf4 {[%clk 0:00:13]}  Rcc2 {[%clk 0:00:12]} 46. Rbe3 {[%clk 0:00:13]}  g5 {[%clk 0:00:09]} 47. Rxe5 {[%clk 0:00:04]}  gxf4 {[%clk 0:00:09]} 48. Rh5 {[%clk 0:00:04]}  Rg2+ {[%clk 0:00:07]} 49. Kh1 {[%clk 0:00:05]}  fxg3 {[%clk 0:00:08]} 50. hxg3 {[%clk 0:00:04]}  Rxg3 {[%clk 0:00:09]} 51. Rb1 {[%clk 0:00:03]}  Rxf3 {[%clk 0:00:06]} 52. Rxb6+ {[%clk 0:00:03]}  Kg7 {[%clk 0:00:06]} 53. Rb1 {[%clk 0:00:03]}  Rf6 {[%clk 0:00:05]} 54. Rg1+ {[%clk 0:00:01]}  Rg6 {[%clk 0:00:05]} 55. Rh2 {[%clk 0:00:01]}  Rxh2+ {[%clk 0:00:03]} 56. Kxh2 {[%clk 0:00:02]}  Rxg1 {[%clk 0:00:04]} 57. Kxg1 {[%clk 0:00:02]}  Kf7 {[%clk 0:00:05]} 58. a4 {[%clk 0:00:02]}  Ke7 {[%clk 0:00:05]} 59. a5 {[%clk 0:00:03]}  Kd7 {[%clk 0:00:06]} 60. a6 {[%clk 0:00:04]}  Kc7 {[%clk 0:00:06]} 61. a7 {[%clk 0:00:05]}  Kb7 {[%clk 0:00:07]} 62. a8=Q+ {[%clk 0:00:06]}  Kxa8 {[%clk 0:00:07]} 63. Kg2 {[%clk 0:00:07]}  h5 {[%clk 0:00:07]} 64. Kh3 {[%clk 0:00:08]}  h4 {[%clk 0:00:08]} 65. Kxh4 {[%clk 0:00:09]} 1/2-1/2


[Site "https://www.chess.com"]